Cogmind - Beta 11.1 @@@ ROGUE MODE // 2022.07.08 @ 13:51:48 Player: Calazard Result: Destroyed by G-34 Mercenary with Small Laser Performance ------------- Evolutions (1) 500 Regions Visited (3) 600 Robots Destroyed (0) 0 Value Destroyed (0) 0 Prototype IDs (0) 0 Alien Tech Used (0) 0 Bonus (200) 200 TOTAL SCORE: 1300 Bonus ------- Pacifist 200 Cogmind --------- Core Integrity 0/400 Matter 250/300 Energy 100/100 System Corruption 0% Temperature Cool (4) Movement Flying (40) Location -9/Storage Parts ------- > --- POWER (1) -------- (None) > --- PROPULSION (3) --- Flight Unit > --- UTILITY (3) ------ (None) > --- WEAPON (2) ------- (None) > --- INVENTORY (5) ---- (None) Peak State ------------ > --- POWER ------------ (None) > --- PROPULSION ------- Hover Unit Hover Unit Hover Unit > --- UTILITY ---------- Structural Scanner Visual Processing Unit > --- WEAPON ----------- (None) > --- INVENTORY -------- Hover Unit Flight Unit [Rating: 6] Favorites ----------- Power None Propulsion Hover Unit Hover Unit Hover Unit Flight Unit Flight Unit Utility Structural Scanner Device Structural Scanner Processor Visual Processing Unit Weapon None Build | -11 -10 -9 -9 ------- Run | Scr Mat Mat Sto Slots Evolved 2 | . . 2 . Power . | . . . . Propulsion 1 | . . 1 . Utility 1 | . . 1 . Weapon . | . . . . Parts Attached 7 | . 3 2 2 Power . | . . . . Engine . | . . . . Core . | . . . . Reactor . | . . . . Propulsion 5 | . 2 1 2 Treads . | . . . . Leg . | . . . . Wheel . | . . . . Hover 4 | . 2 1 1 Flight 1 | . . . 1 Utility 2 | . 1 1 . Device 1 | . 1 . . Storage . | . . . . Processor 1 | . . 1 . Hackware . | . . . . Protection . | . . . . Artifact . | . . . . Weapon . | . . . . Energy Gun . | . . . . Energy Cannon . | . . . . Ballistic Gun . | . . . . Ballistic Cannon . | . . . . Launcher . | . . . . Special Weapon . | . . . . Impact Weapon . | . . . . Slashing Weapon . | . . . . Piercing Weapon . | . . . . Special Melee Weapon . | . . . . Unidentified Prototypes . | . . . . Parts Lost 3 | . . 1 2 Power . | . . . . Propulsion 3 | . . 1 2 Utility . | . . . . Weapon . | . . . . Highest Loss Streak 1 | . . 1 1 To Critical Strikes . | . . . . Average Slot Usage (%) 35 | . 35 51 31 Hover 20 | . 25 33 11 Device 9 | . 10 11 9 Processor 5 | . . 7 9 Naked Turns 13 | . 3 . 10 Heaviest Build 1 | . 1 1 1 Greatest Support 12 | 3 12 12 12 Greatest Overweight (x) . | . . . . Average Overweight (x) . | . . . . Largest Inventory Capacity 5 | 5 5 5 5 Average Capacity 5 | 5 5 5 5 Most Carried 4 | . 4 2 1 Average Carried 1 | . 2 2 . Final Capacity 5 | 5 5 5 5 Final Carried 3 | . 3 2 . Class Distribution -------------------- 100% | Mutant Dominant Class ---------------- Mutant | -10/Materials Mutant | -9/Materials Mutant | -9/Storage Resources | -11 -10 -9 -9 ----------- Run | Scr Mat Mat Sto Matter Collected 190 | 190 . . . Remotely . | . . . . Salvage Created . | . . . . Parts . | . . . . Haulers Intercepted . | . . . . Recyclers Shooed . | . . . . Parts Field Recycled . | . . . . Retrieved Matter . | . . . . Parts Self-Destructed . | . . . . Prevented . | . . . . Kills | -11 -10 -9 -9 ------- Run | Scr Mat Mat Sto Combat Hostiles Destroyed . | . . . . Classes Destroyed . | . . . . Best Kill Streak . | . . . . Combat Bots Only . | . . . . Max Kills in Single Turn . | . . . . Gunslinging . | . . . . Exploded . | . . . . Melee . | . . . . Uniques/NPCs Destroyed . | . . . . Combat | -11 -10 -9 -9 -------- Run | Scr Mat Mat Sto Damage Taken 544 | . . 86 458 Core 401 | . . 18 383 Absorbed by Shields 39 | . . . 39 Core Remaining (%) 100 | 100 100 . . Volleys Fired . | . . . . Largest . | . . . . Hottest . | . . . . Shots Fired . | . . . . Gun . | . . . . Cannon . | . . . . Launcher . | . . . . Special . | . . . . Kinetic . | . . . . Thermal . | . . . . Explosive . | . . . . Electromagnetic . | . . . . Robot Hit Streak . | . . . . Robot Miss Streak . | . . . . Penetration Max . | . . . . Secondary Targets . | . . . . Shots Hit Robots . | . . . . Core Hits . | . . . . Critical Kills . | . . . . Critical Parts Destroyed . | . . . . Critical Strikes . | . . . . Melee Attacks . | . . . . Impact . | . . . . Slashing . | . . . . Piercing . | . . . . Sneak Attacks . | . . . . Combat Hostiles . | . . . . Follow-up Attacks . | . . . . Damage Inflicted 23 | . . 17 6 Guns . | . . . . Cannons . | . . . . Explosions . | . . . . Melee . | . . . . Ramming 23 | . . 17 6 Kinetic . | . . . . Thermal . | . . . . Explosive . | . . . . Electromagnetic . | . . . . Impact . | . . . . Slashing . | . . . . Piercing . | . . . . Highest Corruption . | . . . . Average Corruption . | . . . . Corruption Purged . | . . . . Corruption Blocked . | . . . . Overload Shots . | . . . . Overflow Damage . | . . . . Projectiles . | . . . . Explosions . | . . . . Melee . | . . . . Knockbacks . | . . . . Impact . | . . . . Kinetic . | . . . . Secondary . | . . . . Self-Inflicted Damage 11 | . . 8 3 Shots . | . . . . Rammed 5 | . . 3 2 Targets Rammed 5 | . . 3 2 Kicked . | . . . . Crushed . | . . . . Highest Temperature 4 | . . . 4 Average Temperature 4 | . . . 4 Received Heat Transfer 134 | . . 18 116 Siege Activations . | . . . . Robots Corrupted . | . . . . Combat Hostiles . | . . . . Parts Fried . | . . . . Impact Corruptions . | . . . . Robots Melted . | . . . . Combat Hostiles . | . . . . Parts Melted . | . . . . Heat Transferred . | . . . . Parts Sabotaged . | . . . . Parts Stolen . | . . . . Parts Stripped . | . . . . Power Chain Reactions . | . . . . Missiles Intercepted . | . . . . Alert | -11 -10 -9 -9 ------- Run | Scr Mat Mat Sto Peak Influence 165 | . 24 9 165 Initial 9 | . . 9 . Average 35 | . 10 8 71 Maximum Alert Level . | . . . . Low Security (%) 100 | 100 100 100 100 Level 1 . | . . . . Level 2 . | . . . . Level 3 . | . . . . Level 4 . | . . . . Level 5 . | . . . . High Security . | . . . . Max Security . | . . . . Squads Dispatched 4 | . . . 4 Investigation 2 | . . . 2 Extermination . | . . . . Reinforcement 2 | . . . 2 Assault . | . . . . Garrison . | . . . . Intercept . | . . . . Searches Triggered . | . . . . Construction Impeded . | . . . . Haulers Reinforced . | . . . . Active Scanning Responses . | . . . . Cargo Convoy Interrupts . | . . . . Stealth | -11 -10 -9 -9 --------- Run | Scr Mat Mat Sto Distress Signals 3 | . . 2 1 Communications Jammed . | . . . . Distress Signals . | . . . . Times Spotted 26 | . 1 2 23 Peak Tracking Total 16 | . 1 3 16 Tactical Retreats 4 | . . . 4 Traps | -11 -10 -9 -9 ------- Run | Scr Mat Mat Sto Traps Triggered 2 | . . . 2 Indirectly . | . . . . Trap Hack Attempts . | . . . . Triggered . | . . . . Disarmed . | . . . . Reprogrammed . | . . . . Reused . | . . . . Traps Extracted . | . . . . Installed . | . . . . Triggered . | . . . . Machines | -11 -10 -9 -9 ---------- Run | Scr Mat Mat Sto Machines Disabled . | . . . . Max in Single Turn . | . . . . Machines Sabotaged . | . . . . Garrisons Compromised . | . . . . Overloaded Fab Kills . | . . . . Hacking | -11 -10 -9 -9 --------- Run | Scr Mat Mat Sto Machines Accessed 4 | . 2 . 2 Terminals 4 | . 2 . 2 Fabricators . | . . . . Repair Stations . | . . . . Recycling Units . | . . . . Scanalyzers . | . . . . Garrison Access . | . . . . Total Hacks 11 | . 6 . 5 Successful 3 | . 2 . 1 Failed 8 | . 4 . 4 Catastrophic 3 | . . . 3 Database Lockouts . | . . . . Manual 12 | . 6 . 6 Terminals 11 | . 6 . 5 Fabricators . | . . . . Repair Stations . | . . . . Recycling Units . | . . . . Scanalyzers . | . . . . Garrison Access . | . . . . Terminal Hacks 3 | . 2 . 1 Level Access Points 1 | . 1 . . Zone Layout 2 | . 1 . 1 Fabricator Hacks . | . . . . Repair Station Hacks . | . . . . Recycling Unit Hacks . | . . . . Scanalyzer . | . . . . Garrison Access Hacks . | . . . . Unauthorized Hacks . | . . . . Terminals . | . . . . Fabricators . | . . . . Repair Stations . | . . . . Recycling Units . | . . . . Scanalyzers . | . . . . Garrison Access . | . . . . Data Cores Recovered . | . . . . Used . | . . . . Hacking Detections 3 | . 1 . 2 Full Trace Events 2 | . . . 2 Feedback Events . | . . . . Feedback Blocked . | . . . . Robot Schematics Acquired . | . . . . Robots Built . | . . . . Authchips . | . . . . Time . | . . . . Total Robot Build Rating . | . . . . Part Schematics Acquired . | . . . . Parts Built . | . . . . Authchips . | . . . . Time . | . . . . Total Part Build Rating . | . . . . Parts Repaired . | . . . . Time . | . . . . Parts Recycled . | . . . . Recycled Matter . | . . . . Retrieved Matter . | . . . . Retrieved Components . | . . . . Parts Scanalyzed . | . . . . Part Schematics Acquired . | . . . . Parts Damaged . | . . . . Bothacking | -11 -10 -9 -9 ------------ Run | Scr Mat Mat Sto Used RIF Installer . | . . . . Robots Hacked . | . . . . Non-combat . | . . . . Combat . | . . . . Robot Hacks Applied . | . . . . Relay Couplers Released . | . . . . Fabnet Peak Effective % . | . . . . Robots Rewired . | . . . . Allies Hacked . | . . . . Hacks Repelled . | . . . . Allies | -11 -10 -9 -9 -------- Run | Scr Mat Mat Sto Total Allies . | . . . . Largest Group . | . . . . Highest-Rated Group . | . . . . Highest-Rated Ally . | . . . . Total Orders . | . . . . Ally Attacks . | . . . . Total Damage . | . . . . Kills . | . . . . Allies Corrupted . | . . . . Allies Melted . | . . . . Intel | -11 -10 -9 -9 ------- Run | Scr Mat Mat Sto Robot Analysis Total . | . . . . Derelict Logs Recovered . | . . . . Drone Launches . | . . . . Drone Recoveries . | . . . . Exploration | -11 -10 -9 -9 ------------- Run | Scr Mat Mat Sto Turns Passed 276 | 16 109 32 119 Spaces Moved 450 | 31 181 47 191 Core 82 | 31 5 . 46 Treads . | . . . . Legs . | . . . . Wheels . | . . . . Hover 360 | . 176 47 137 Flight 8 | . . . 8 Fastest Speed 40 | 50 50 56 40 Average Speed 55 | 50 55 56 55 Slowest Speed 60 | 50 60 60 60 Overloaded Moves . | . . . . Propulsion Burnouts . | . . . . Robots Hopped 5 | . . . 5 Cave-ins Triggered . | . . . . Exploration Rate (%) 28 | 3 37 10 64 Regions Visited 3 Branch Regions 1 Pre-discovered Areas . | . . . . Known Exits Taken 1 | . 1 . . Unknown Exits Taken 2 | 1 . 1 . Scrap Searched . | . . . . Spaces Dug . | . . . . Terrain Destroyed . | . . . . Melee . | . . . . Projectile . | . . . . AOE . | . . . . Terrain Rammed . | . . . . Walls Destroyed . | . . . . Machines Disabled . | . . . . Actions | -11 -10 -9 -9 --------- Run | Scr Mat Mat Sto Total 468 | 30 187 51 200 Wait . | . . . . Move 439 | 30 180 46 183 Hop 3 | . . . 3 Pick Up 4 | . 4 . . Fast Attach 3 | . 2 1 . Attach 4 | . 1 1 2 Detach . | . . . . Swap . | . . . . Drop 1 | . . . 1 Fire . | . . . . Melee . | . . . . Ram 5 | . . 3 2 Kick . | . . . . Crush . | . . . . Escape Stasis 9 | . . . 9 Rewire . | . . . . Trap . | . . . . Miscellaneous . | . . . . Route ------- -11/Scrapyard -10/Materials (discovered 5 exits: *Mat x3 / [*Min x2]) -9/Materials -9/Storage (discovered 1 exit: [Rec]) History --------- Turn | Location | Event 6 | -11/Scrapyard | Discovered new exit (range 16) 17 | -11/Scrapyard | Entered Materials 29 | -10/Materials | Identified exit to Materials 100 | -10/Materials | Discovered new exit (range 12) 100 | -10/Materials | Discovered new exit (range 11) 126 | -10/Materials | Entered another Materials area 126 | -9/Materials | Evolved 2 slots: Propulsion x1, Utility x1 139 | -9/Materials | Discovered new exit (range 16) 158 | -9/Materials | Entered Storage 235 | -9/Storage | Discovered new exit (range 12) 252 | -9/Storage | Core integrity fell below 50% 271 | -9/Storage | Core integrity fell below 20% 277 | -9/Storage | Destroyed by G-34 Mercenary with Small Laser Last Messages --------------- 00254_ R-06 Scavenger collects Structural Scanner. 00254_ K-01 Serf cleans the Compression Vault. 00258_ R-06 Scavenger collects Terrain Scan Processor. 00259_ Connecting with Door Terminal... 00261_ Slammed into W-16 Scout. 00263_ Slammed into G-34 Mercenary. 00267_ Critical hit (Burn: +37). 00267_ Triggered Stasis Trap. 00267_ A bubble of rippling energy engulfs the area. 00267_ Field strength at 95. 00268_ K-01 Serf cleans the Compression Vault. 00268_ Field strength at 87. 00269_ Field strength at 79. 00270_ Field strength at 71. 00271_ Field strength at 60. 00272_ Field strength at 55. 00273_ Field strength at 40. 00274_ Field strength at 35. 00275_ Field strength at 24. 00276_ Field strength at 19. Map ----- +----------------------------------------------------+ | ?????????????????????????????????? | | ?????????????????????????????????? | | ?????????????????????????????????? | | ?????????????????????????????????? | | ?????????????????????????????????? | | ?????????????????????????????????? | | ?????????????????????????????????? | | ?????????????????????????????????? | | ?????????????????????????????????? | | ?????????????????????????????????? | | ????????? ???????????????????????? | | ??????#?? ???????????????????????? | | ??????# ???????????????????????? | | ??????# s???????????????????????? | | ?????## #??????????????????????? | | ?????# ??????????????????????? | | ?????# s ??????????????????????? | | ?????# T ??????????????????????? | | ?????? ??????????????????????? | | ?????? ???????##?????????????? | | ??????# ######## ##????????????? | | ??????# g# ! ##???????????? | | ???#+## g # ""#??????????? | | ???# # T"#??????????? | | ???# # s Y ""#??????##### | | ???# @gg #????????##### | | ???# # """ """ #????????## | | ???# # """ """??????????## | | ???# # """ ""???????????## | | ???# #/######??############## | | ???######## ##??????############ | | ??????????# ########## ### " | | ?????????## ########## / / " | | ???????#### + ### " | | ???????#T## ########+########### " | | ???##!!" ## ### ######### | | ???##!! + ##" ! """##?????## | | ???##!!" # ##T """##?????## | | ???####### ##" """##?????#### | | ???####### ### ##?????#### | | ????????## ### """##????????? | | ?######### ### """##????????? | | ?######### ### """##????????? | | ?##"""#### ### ##????????? | | ###"T"#### #######+##########???? | | ###" "## # #####"""#???? | | # # ^ ### #"T"###?? | | # #!!!! # #?# | | # #!!%= # ### | | #""" #!!= ## """" # | +----------------------------------------------------+ Best States ------------- Heat Dissipation 28 Energy Generation 5 Energy Capacity 100 Matter Stores 290 Matter Capacity 300 Sight Range 18 Terrain Scan Density 10 Evasion (%) 53 Item Schematics ----------------- None Robot Schematics ------------------ None Fabricated ------------ Nothing Alien Tech Used ----------------- None Achievements -------------- None Challenges ------------ None Game ------ Seed ExperimentalHellfireLeg Manual? 0 Play Time 00:06:46 Cumulative 18.7 hours Start 2022.07.08 @ 13:47:15 End 2022.07.08 @ 13:51:48 Sessions 1 Manual Loads 0 Difficulty Rogue Special Mode None Game No. 28 Rogue 28 Adventurer 0 Explorer 0 Win Type - Total 0 Types 0/0/0/0/0/0/0/0/0 Lore% 23 Gallery% 31 Achievement% 23 Wizard Run 0 Options --------- ASCII 0 Keyboard 0 Movement Numpad Keybinds 0 Fullscreen 0 Font 16/Terminus Map View 76x50 Tactical HUD 1 Map Filters NONE Filters NONE Steam 1 RUN: d9d03fed-4831-47df-a029-e341fff9d57d